[Event "45th FIDE Womens Olympiad 2024"]
[Site "Budapest"]
[Date "2024.09.15"]
[Round "5.112"]
[White "Fang, Kun"]
[Black "Lopez Rayo, Isabella"]
[Result "0-1"]
[ECO "C63"]
[WhiteElo "1769"]
[BlackElo "1952"]
[Annotator "TA"]
[PlyCount "144"]
[EventDate "2024.09.05"]
[EventType "team-tourn"]
[EventCountry "HUN"]
[SourceTitle "playchess.com"]
[Source "ChessBase"]
[SourceQuality "1"]
[WhiteTeam "Singapore"]
[BlackTeam "Colombia"]
[WhiteTeamCountry "SIN"]
[BlackTeamCountry "COL"]
[TimeControl "40/5400+30:1800+30"]

{[%evp 24,144,-144,-163,-130,-237,-136,-134,-93,-207,-222,-254,-231,-300,-316,-314,-303,-319,-314,-371,-375,-360,-381,-382,-375,-373,-327,-320,-234,-218,-233,-233,0,-355,-184,-181,-184,-183,-182,-187,-191,-190,-185,-229,-207,-273,-265,-268,-263,-268,-264,-283,-283,-280,-250,-302,-243,-244,-262,-362,-272,-385,-375,-370,-389,-356,-281,-450,-414,-395,-368,-397,-323,-323,-323,-329,-329,-329,-322,-322,-131,-147,0,-322,-322,-315,-307,-296,-267,-264,-276,-271,-260,-274,-241,-409,-397,-382,-390,-425,-400,-510,-510,-510,-510,-540,-533,-526,-526,-511,-511,-779,-754,-29962,-29963,-29963,-29966,-29956,-4926,-29971,-29973,-29963,-11750]} 1. e4 e5 2. Nf3 Nc6 3. Bb5 f5 4. d4 fxe4 5. Nxe5 Nxe5 6. dxe5 c6 7. Be2 Qa5+ 8. Bd2 Qxe5 9. Bh5+ {C63: Ruy Lopez: Schliemann/Jaenisch Defence.} Kd8 10. Nc3 Nf6 11. Bg4 $146 ({Predecessor:} 11. Be2 d5 12. Be3 Bd6 13. Qd2 Re8 14. O-O-O b6 15. g3 Bb7 16. Rhe1 Qf5 17. Rf1 {0-1 Cisler,P (2210)-Bujak,M (2145) CZE-chT2A 1314 2013 (3.3)}) 11... h5 12. Bh3 d5 13. Bxc8 Rxc8 14. Qe2 (14. Be3 $17 {was worth a try.}) 14... Bd6 (14... d4 $1 $19 {[%cal Rd4c3]} 15. O-O-O Kc7 (15... dxc3 $2 16. Bxc3+ $18)) 15. O-O-O $17 d4 16. Nb1 (16. g3 $17 Qf5 (16... dxc3 17. Bf4 $15) 17. Be3 dxe3 18. Rxd6+ Kc7 19. Rxf6 Qxf6 20. Qxe3) 16... Kc7 $19 17. g3 Qd5 18. Bc3 c5 (18... Qxa2 19. Bxd4 Rhe8 20. Bxf6 gxf6 21. Qxh5 $15) 19. b3 Qf5 20. Na3 Kb8 (20... dxc3 21. Nb5+ Kb8 22. Nxd6 Qg5+ 23. Kb1 $14) 21. Bb2 Ng4 22. Nc4 Bc7 (22... Qxf2 23. Qxf2 Nxf2 24. Nxd6 $17) 23. Rde1 Nxf2 (23... Qxf2 24. Qxe4 b5 (24... Nxh2 25. Re2 $19) 25. Ref1 bxc4 26. Rxf2 Nxf2 27. Qd5 Nxh1 28. Qxc4 $19) 24. Rhf1 Rhf8 25. Kb1 e3 26. Nxe3 dxe3 27. Qxe3 Qf3 $2 (27... Rcd8 $19 {aiming for ...Ba5.} 28. Bxg7 Rf7) 28. Qe7 $2 {[%mdl 8192]} (28. Qxf3 $1 $11 {and White stays safe.} Rxf3 29. Re2) 28... Qf7 (28... g6 $142 {Strongly threatening ...Qg2.} 29. Re2 Qg2) 29. Bxg7 $19 Qxe7 $1 30. Rxe7 Rf5 31. Re2 {[#]} Rf7 $1 32. Bh6 Rh7 33. Bg5 Ng4 34. h3 Ne5 35. Rf5 Nc6 36. Rxc5 Bxg3 37. Rd5 Rf7 38. Kb2 h4 39. a3 Rf2 40. Rxf2 Bxf2 41. Rd7 Nd4 42. c3 (42. Bf4+ {keeps fighting.} Ka8 43. c3) 42... Ne6 $19 43. Bf6 Rf8 44. Be5+ Ka8 45. c4 $2 (45. Re7 {was called for.} Ng5 46. Bf6) 45... Bg3 $19 46. Bd6 Rh8 47. c5 a6 48. b4 Ng5 49. a4 Bxd6 50. cxd6 Kb8 51. Re7 Kc8 (51... Rd8 $19 {and Black stays clearly on top.} 52. Rg7 Nxh3) 52. Rc7+ $17 {[#]} Kb8 $2 (52... Kd8 $1 $17 53. Rxb7 Rh6 (53... Nxh3 $2 {perishes.} 54. Rb8+ Kd7 55. Rxh8 $18) 54. Rb8+ Kd7 55. Rb7+ Kc6 (55... Kxd6 $2 {too greedy.} 56. Rb6+ Kc7 57. Rxh6 $18)) 53. Re7 $1 $19 Rd8 54. Rg7 Nf3 55. Rg6 Rh8 56. Kc3 Rc8+ 57. Kb2 Ne5 58. Re6 Nf7 59. Kb3 $2 (59. d7 Rd8 60. Re4) 59... Rd8 $19 60. Re4 Rh8 ({Don't play} 60... Rxd6 61. Rf4 Ng5 62. Rxh4 $19) 61. Rd4 Kc8 62. Kc4 Kd7 63. Kc5 Rh5+ 64. Kb6 Nxd6 65. Rg4 Ke6 66. Rg6+ Kd5 67. Kc7 (67. b5 $142 axb5 68. axb5) 67... Rh7+ $19 68. Kb6 Nc4+ 69. Ka7 b5+ 70. Kxa6 bxa4 71. b5 a3 72. Rg2 Rh6+ 0-1

[Event "45th FIDE Womens Olympiad 2024"]
[Site "Budapest"]
[Date "2024.09.15"]
[Round "5.113"]
[White "Zhang, Jilin"]
[Black "Mayorga Araya, Sofia"]
[Result "1/2-1/2"]
[ECO "B92"]
[WhiteElo "2155"]
[BlackElo "2059"]
[Annotator "TA"]
[PlyCount "117"]
[EventDate "2024.09.05"]
[EventType "team-tourn"]
[EventCountry "HUN"]
[SourceTitle "playchess.com"]
[Source "ChessBase"]
[SourceQuality "1"]
[WhiteTeam "Australia"]
[BlackTeam "Costa Rica"]
[WhiteTeamCountry "AUS"]
[BlackTeamCountry "CRI"]
[TimeControl "40/5400+30:1800+30"]

{[%evp 21,117,18,19,11,19,21,35,31,30,34,45,41,61,45,49,54,48,49,69,42,60,57,55,34,68,77,150,150,141,168,178,75,324,215,716,172,446,421,567,510,514,409,423,266,269,277,300,310,372,379,379,221,668,212,638,74,74,72,61,42,42,42,55,49,49,0,0,0,0,0,0,0,8,8,6,8,18,8,10,23,20,0,0,0,0,0,0,0,0,0,0,0,0,0,0,0,5,0]} 1. e4 c5 2. Nf3 d6 3. d4 cxd4 4. Nxd4 Nf6 5. Nc3 a6 6. Be2 e5 7. Nb3 Be7 8. O-O Be6 9. Be3 O-O 10. Re1 {B92: Sicilian Najdorf: 6 Be2.} Nbd7 11. a4 Rc8 12. Bf3 Qc7 {was the old line (12...Nb6).} 13. a5 Rfd8 14. Nd2 h6 15. Nf1 Nc5 16. Nd5 $146 ({Predecessor:} 16. Ng3 Bf8 17. Qd2 Qb8 18. Nd5 Bxd5 19. exd5 Kh7 20. h4 g6 21. h5 Bg7 22. Rac1 {1-0 Alekseev,E (2632)-Magalashvili,D (2448) Wch U20 Istanbul 2005 (4)}) 16... Nxd5 17. exd5 Bf5 18. Ng3 Bh7 19. Bg4 Rb8 20. b3 Rf8 21. Nf5 Bf6 22. b4 Nd7 23. Rc1 b6 ({Black should try} 23... Bg5) 24. axb6 $1 $16 Nxb6 {[#]} 25. c4 $1 Rfd8 {[#]} (25... Nxc4 26. Qb3 Nxe3 27. Rxc7) 26. Qf3 (26. c5 $1 $18 {[%cal Rc5b6] is more deadly.} Nc8 27. Qd2 Bxf5 28. Bxf5) 26... e4 $2 (26... Bxf5 $16 {keeps fighting.} 27. Bxf5 Nc8 (27... Nxc4 $2 28. Bd3 $18)) 27. Qxe4 Re8 $2 (27... Nd7) 28. Qf3 $2 (28. Bxb6 Rxe4 29. Bxc7) 28... Nd7 $2 ({But not} 28... Bxf5 29. Bxf5 Bb2 (29... Nxc4 $2 30. Bd3 $18) 30. Rc2 (30. c5 Bxc1 31. Rxc1 Re5 $14) (30. c5 Bxc1 31. Rxc1 Re5 $16)) (28... Bb2) 29. Nxh6+ $18 Kf8 30. Qh3 Ne5 31. Bf5 Bg6 32. Bxg6 fxg6 33. Ng4 Nxg4 34. Qxg4 Rxb4 35. Qxg6 Rxc4 36. Bg5 (36. Qxe8+ $142 Kxe8 37. Bb6+ Kd7 38. Bxc7 Rxc7 39. Rxc7+ Kxc7 40. Rc1+ Kb6 41. Rc6+ Kb5 42. Rxd6) 36... Rxe1+ $18 37. Rxe1 Qf7 $2 (37... Be5 38. h4 Qf7) 38. Qxf7+ $2 (38. Qh7 $18 {is the precise move to win.} Be5 (38... Bxg5 $2 {is the wrong capture.} 39. Qh8+ Qg8 40. Re8+ Kxe8 41. Qxg8+ Kd7 42. Qxg7+ Be7 43. g3 $18) 39. f4 Rxf4 40. Qh8+ Qg8 41. Qxg8+ Kxg8 42. Bxf4 Bxf4 43. Ra1) 38... Kxf7 $16 39. Bxf6 gxf6 40. g3 Rc5 41. Rd1 a5 42. Rd4 Kg6 43. g4 (43. Kf1 $14) 43... Rb5 $11 44. Kf1 Kg5 45. h3 Rb3 46. Ra4 Rb5 47. Kg2 Rxd5 48. Kg3 Rb5 49. h4+ Kg6 50. Rc4 f5 51. Rc6 fxg4 52. Kxg4 Rd5 53. Ra6 Kh6 54. f4 Kg6 55. Ra8 Kh6 56. Rh8+ Kg7 57. Ra8 Kh6 58. Rh8+ Kg7 59. Ra8 1/2-1/2

[Event "45th FIDE Womens Olympiad 2024"]
[Site "Budapest"]
[Date "2024.09.15"]
[Round "5.114"]
[White "Acevedo Mendez, Jennifer"]
[Black "Nguyen, Thu Giang"]
[Result "1/2-1/2"]
[ECO "B12"]
[WhiteElo "1836"]
[BlackElo "2068"]
[Annotator "TA"]
[PlyCount "111"]
[EventDate "2024.09.05"]
[EventType "team-tourn"]
[EventCountry "HUN"]
[SourceTitle "playchess.com"]
[Source "ChessBase"]
[SourceQuality "1"]
[WhiteTeam "Costa Rica"]
[BlackTeam "Australia"]
[WhiteTeamCountry "CRI"]
[BlackTeamCountry "AUS"]
[TimeControl "40/5400+30:1800+30"]

{[%evp 9,111,8,23,5,10,5,14,0,37,25,26,27,35,39,35,-14,14,15,7,19,23,20,28,6,12,18,64,60,86,80,90,80,164,145,156,164,165,141,144,144,144,140,180,177,234,170,247,108,104,110,91,116,158,67,105,89,85,69,102,69,69,69,72,69,102,69,92,69,117,117,125,92,134,127,230,230,288,88,88,69,104,104,104,69,69,61,61,61,61,61,61,61,61,61,61,61,517,61,61,0,465,0,61,0]} 1. e4 c6 2. d4 d5 3. e5 c5 4. c3 cxd4 5. cxd4 Nc6 6. Be2 Bf5 7. Nc3 e6 8. a3 {The position is equal.} Qb6 9. Nf3 Bg4 10. Na4 Qc7 11. O-O Nge7 12. Bf4 (12. b4 $14) 12... Bxf3 13. Bxf3 Nf5 14. Rc1 Rc8 15. Be3 Be7 16. Qd2 O-O 17. b4 b5 (17... Qd7 $11 {is more appropriate.}) 18. Nc5 $14 a5 19. Be2 axb4 20. axb4 Nxe3 (20... h6 $16) 21. fxe3 $18 Bg5 22. Bxb5 Qe7 23. Bxc6 Rxc6 24. Qd3 Rb6 25. b5 {White is more active.} f6 {Black is weak on the light squares} 26. exf6 gxf6 (26... Bxf6 {keeps fighting.} 27. h3 Qe8) 27. Ra1 e5 (27... Rfb8 {was called for.} 28. Na6 Rc8) 28. Qb3 (28. Kh1 $18 {is more deadly.}) 28... exd4 $16 29. Qxd5+ Qf7 30. Qxd4 Rxb5 31. Ne4 (31. Ra6 $16) 31... Qe6 32. Nxg5 (32. Ra7 {looks sharper.} Re8 33. Rc1 Qb6 34. Nxg5 Qxd4 35. exd4 fxg5 36. Rcc7) 32... Rxg5 33. Rf4 Rg6 34. Qc4 Qxc4 35. Rxc4 $14 {[%mdl 4096] Endgame. KRR-KRR} Rf7 36. Kf2 Re7 37. Kf3 Kg7 38. Rac1 Re5 (38... Rg5 $14) 39. Rf4 Re7 40. Rc6 Kf7 41. h4 Rh6 (41... h5 $16 {was worth a try.}) 42. g3 $18 Kg7 43. Rfc4 $2 {[#]} (43. Rf5 $18 {and the rest is easy.}) 43... Rh5 $16 44. Rc7 Rhe5 45. Rxe7+ Rxe7 {KR-KR} 46. Kf4 h5 47. e4 Re5 48. Rd4 {[#] And now Rd5 would win.} Kg6 49. Rd5 Re8 50. Rb5 Re7 51. Rb8 Re5 52. Rg8+ Kf7 $2 {[%mdl 8192]} (52... Kh6 $14) 53. Rd8 $2 (53. Rg5 $1 $18 {[%cal Rg5e5]} Re6 54. Rxh5) 53... Kg6 $14 54. Rg8+ $2 {[%mdl 8192]} (54. Rh8 $14) 54... Kf7 $1 $18 55. Rd8 ({White has to play} 55. Rg5 $1 $18 {[%cal Rg5e5]} Re6 56. Rxh5) 55... Kg6 $1 $14 56. Rg8+ {Weighted Error Value: White=0.43/Black=0.31.  Loses game:     	---       	Black=1      Missed win:     	White=3     	---        Mistake:       	White=5     	Black=6      Inaccurate:     	White=3     	Black=8      OK:         	White=16    	Black=19     Best:        	White=2     	Black=1      Strong:       	---       	Black=2} (56. Ra8 $14) 1/2-1/2

[Event "45th FIDE Womens Olympiad 2024"]
[Site "Budapest"]
[Date "2024.09.15"]
[Round "5.115"]
[White "Shen, Zhiyuan"]
[Black "Bogantes Robleto, Karina"]
[Result "1/2-1/2"]
[ECO "B35"]
[WhiteElo "1969"]
[BlackElo "1766"]
[Annotator "NA RC"]
[PlyCount "85"]
[EventDate "2024.09.05"]
[EventType "team-tourn"]
[EventCountry "HUN"]
[SourceTitle "playchess.com"]
[Source "ChessBase"]
[SourceQuality "1"]
[WhiteTeam "Australia"]
[BlackTeam "Costa Rica"]
[WhiteTeamCountry "AUS"]
[BlackTeamCountry "CRI"]
[TimeControl "40/5400+30:1800+30"]

1. e4 c5 2. Nf3 Nc6 3. d4 cxd4 4. Nxd4 g6 5. Nc3 Bg7 6. Be3 Nf6 7. Bc4 Qa5 8. O-O O-O 9. Bb3 d6 10. h3 Bd7 11. Nde2 Rac8 12. f4 a6 13. Ng3 b5 14. Nd5 Nxd5 15. exd5 Nd8 16. Bd4 Bxd4+ 17. Qxd4 Qc7 18. Rae1 Re8 19. f5 Qc5 20. Qxc5 dxc5 21. c3 Nb7 22. Re2 Nd6 23. fxg6 hxg6 24. Ne4 Nxe4 25. Rxe4 Bf5 26. Ref4 c4 27. Bd1 Bd3 28. R1f2 f5 29. Bf3 Rcd8 30. Rd4 Rd6 31. g4 Kg7 32. gxf5 Bxf5 33. Kg2 e5 34. dxe6 Rdxe6 35. Rfd2 Re3 36. h4 Bd3 37. Rf2 R8e7 38. Rd6 R3e6 39. Rd4 Be4 40. Rfd2 Bxf3+ 41. Kxf3 Re3+ 42. Kf2 R3e6 43. Rd7 1/2-1/2

[Event "45th FIDE Womens Olympiad 2024"]
[Site "Budapest"]
[Date "2024.09.15"]
[Round "5.116"]
[White "Canales Chinchilla, Victoria"]
[Black "Vincent, Alaina"]
[Result "0-1"]
[ECO "B42"]
[WhiteElo "1825"]
[BlackElo "1976"]
[Annotator "TA"]
[PlyCount "124"]
[EventDate "2024.09.05"]
[EventType "team-tourn"]
[EventCountry "HUN"]
[SourceTitle "playchess.com"]
[Source "ChessBase"]
[SourceQuality "1"]
[WhiteTeam "Costa Rica"]
[BlackTeam "Australia"]
[WhiteTeamCountry "CRI"]
[BlackTeamCountry "AUS"]
[TimeControl "40/5400+30:1800+30"]

{[%evp 12,124,70,33,49,44,71,31,135,104,95,108,105,26,105,104,97,70,140,136,128,141,129,62,47,50,47,33,31,34,109,45,35,44,42,37,41,16,13,15,47,31,42,37,106,106,95,101,106,120,122,108,211,0,0,0,0,-108,-108,-108,-110,-106,-35,-19,-6,-24,-8,-11,-2,-4,-11,-15,0,0,0,0,0,0,2,-11,0,0,0,0,-5,-4,0,0,0,-5,0,-8,0,-23,-22,-35,0,-65,0,0,0,0,0,-89,-89,-176,-175,-166,-143,-1346,-320,-1339,-1086,-29997,-29998]} 1. e4 c5 2. Nf3 e6 3. d4 cxd4 4. Nxd4 a6 5. Bd3 b5 6. O-O Bb7 7. Be3 Qc7 8. Nd2 Nf6 9. Rc1 d6 (9... Bc5 $14) 10. c4 b4 11. Qa4+ Nbd7 12. Qxb4 (12. f3 $16) 12... Nc5 (12... Ng4 $1 $11 13. Qc3 Nxe3 14. fxe3 Be7) 13. Qc3 $16 Ncxe4 14. Nxe4 Bxe4 (14... Nxe4 $14 15. Bxe4 Bxe4) 15. Bxe4 Nxe4 16. Qc2 Nf6 17. h3 ({White should try} 17. Qa4+ $16 Qd7 18. Nb5) 17... Be7 $14 18. b4 O-O 19. Rfd1 Rfc8 20. Qd3 h6 (20... Qb7 $14) 21. Rc2 (21. b5 $1 $16) 21... Qb7 22. a3 Rc7 23. Rdc1 Rac8 24. f3 Nd7 25. Nb3 Bf8 26. Bf4 e5 27. Be3 d5 {[#]} 28. Na5 $1 $16 (28. Qxd5 $2 Qxd5 29. cxd5 Rxc2 $19) (28. cxd5 Rxc2 29. Rxc2 Rxc2 30. Qxc2 Qxd5) 28... Qa8 {[#]} 29. c5 $1 {[%cal Bc4c5,Bc5c6][%mdl 32]} (29. Qxd5 $2 Qxd5 30. cxd5 Rxc2 $19) (29. cxd5 Rxc2 30. Rxc2 Rxc2 31. Qxc2 Qxd5 $14) 29... d4 30. Bf2 Be7 31. c6 Nb8 (31... Nf8 $16 {is a better defense.}) 32. Qe4 $2 (32. h4 $18) 32... Bg5 $11 33. Rd1 {[%cal Oh3h4] Strongly threatening h4!} Nxc6 34. Nxc6 (34. Re1 $11) 34... Rxc6 $17 35. Rxc6 Qxc6 36. Qxe5 Bf6 ({Better is} 36... Qc2 $17 37. Qxd4 (37. Rxd4 $2 {too greedy.} Bf6 $19) 37... Rd8 38. Qxd8+ Bxd8 39. Rxd8+ Kh7) 37. Qf5 Rd8 38. g3 g6 39. Qd3 Bg7 40. Rd2 {[%cal Bd1d2,Bd2c2,Bc2c5][%mdl 32]} Qe6 41. Kg2 Qd6 42. Rc2 Qd5 43. Rc5 Qa2 44. Rc2 (44. Qxa6 $2 {perishes.} d3 45. Rc1 Bd4 $19) 44... Qe6 45. Re2 Qd5 46. Rd2 Qc6 47. Rc2 Qb5 48. Rd2 Qa4 49. Rc2 Qb5 50. Rd2 Qb7 51. Qe2 Kh7 52. Rd3 Qb5 53. Qd2 Re8 54. Kg1 (54. Bxd4 $11 Bxd4 55. a4 Qxa4 56. Rxd4) 54... Rc8 {Black is more active.} (54... Bf6 $15 55. h4 (55. Bxd4 $2 {is the wrong capture.} Rd8 $19) 55... Rd8) 55. Bxd4 $11 Bxd4+ 56. Rxd4 {[%mdl 4096] Endgame. KQR-KQR} Qf5 {[%csl LRf3,LRh3] Hoping for ...Qb1+.} 57. Qf2 (57. Qf4 $1 $11 {keeps the balance.} Qe6 58. Re4) 57... Qxh3 $17 58. Rd1 {Wards off Rc1} (58. Re4 $17) 58... Rc3 $36 {[%mdl 2048] Black has strong initiative.} 59. Ra1 Qf5 60. f4 {[%mdl 8192]} (60. Rf1 $17) 60... Qd3 $2 (60... Qh3 61. Qh2 Rxg3+ (61... Qxg3+ $2 62. Qxg3 Rxg3+ 63. Kf2 $19) 62. Kh1 Qg4 (62... Rxa3 $2 63. Rxa3 Qxa3 64. Qd2 $19)) 61. g4 (61. Rf1) 61... Rc2 62. Qe1 Qf3 {[%csl LRf4,LRg4] What a bad dream for White.   Weighted Error Value: White=0.56/Black=0.32.  Loses game:     	White=1     	---        Missed win:     	White=1     	---        Mistake:       	White=8     	Black=9      Inaccurate:     	White=2     	Black=3      OK:         	White=15    	Black=14     Best:        	White=1     	Black=5      Strong:       	White=2     	---} 0-1

[Event "45th FIDE Womens Olympiad 2024"]
[Site "Budapest"]
[Date "2024.09.15"]
[Round "5.117"]
[White "Goossens, Hanne"]
[Black "February, Jesse Nikki"]
[Result "0-1"]
[ECO "C01"]
[WhiteElo "2189"]
[BlackElo "2013"]
[Annotator "TA"]
[PlyCount "60"]
[EventDate "2024.09.05"]
[EventType "team-tourn"]
[EventCountry "HUN"]
[SourceTitle "playchess.com"]
[Source "ChessBase"]
[SourceQuality "1"]
[WhiteTeam "Belgium"]
[BlackTeam "South Africa"]
[WhiteTeamCountry "BEL"]
[BlackTeamCountry "RSA"]
[TimeControl "40/5400+30:1800+30"]

{[%evp 12,60,0,0,11,14,0,7,42,31,52,37,49,48,47,0,-12,-60,-4,-14,20,13,44,24,77,-122,-113,-118,-122,-250,-236,-292,-288,-304,-261,-262,-256,-254,-229,-237,-226,-247,-227,-303,-294,-397,-382,-647,-641,-621,-599]} 1. e4 e6 2. d4 d5 3. exd5 exd5 4. Nf3 Bd6 5. c4 {[%cal Bc2c4,Bc4c5][%mdl 32]} Nf6 6. c5 Be7 7. Bd3 O-O 8. O-O b6 9. Be3 Bg4 {The position is equal.} 10. Nbd2 $1 bxc5 11. dxc5 Nc6 12. Qa4 Bd7 13. Qd1 (13. Bb5 $14 Qe8 14. Bxc6 Bxc6 15. Qa5) 13... Rb8 $11 {[%cal Of6g4]} 14. a3 (14. Nb3 $11) 14... a5 (14... Rxb2 $15 15. h3 Re8) 15. Qc2 h6 16. h3 Qc8 17. Rab1 Be6 (17... Nh5 $11) 18. Nb3 $2 {[#]} (18. Nd4 $16 {and life is bright.} Nxd4 19. Bxd4) 18... Rxb3 $1 $17 {[%mdl 512]} 19. Qxb3 {[#] Hoping for Qa4.} d4 $1 {[%mdl 512]} 20. Qc2 {Loses the game.} (20. Qb5 $17 dxe3 21. Qxc6) (20. Qa4 dxe3) 20... dxe3 $19 21. fxe3 Rd8 22. Rbc1 Qb7 23. Qe2 Rb8 24. Rc2 Bb3 25. Rcc1 Bd5 26. e4 Be6 {A strong pair of Bishops.} 27. Rc2 Nd7 {[%cal Od7e5]} 28. Qf2 Qb3 29. Nd4 $2 (29. Ba6) 29... Nxd4 30. Qxd4 {[#]} Qxc2 $3 {[%mdl 512] Weighted Error Value: White=0.51/Black=0.15 (very precise) .  Mistake:       	White=5     	Black=2      Inaccurate:     	White=2     	Black=3      OK:         	White=9     	Black=9      Best:        	---       	Black=2      Strong:       	White=1     	---        Brilliant:      	---       	Black=2} 0-1

[Event "45th FIDE Womens Olympiad 2024"]
[Site "Budapest"]
[Date "2024.09.15"]
[Round "5.118"]
[White "Badenhorst, Chloe"]
[Black "Vanduyfhuys, Daria"]
[Result "0-1"]
[ECO "D02"]
[WhiteElo "1981"]
[BlackElo "2112"]
[Annotator "TA"]
[PlyCount "74"]
[EventDate "2024.09.05"]
[EventType "team-tourn"]
[EventCountry "HUN"]
[SourceTitle "playchess.com"]
[Source "ChessBase"]
[SourceQuality "1"]
[WhiteTeam "South Africa"]
[BlackTeam "Belgium"]
[WhiteTeamCountry "RSA"]
[BlackTeamCountry "BEL"]
[TimeControl "40/5400+30:1800+30"]

{[%evp 15,74,-5,-3,1,72,57,64,62,60,48,52,69,83,87,100,78,131,79,94,52,64,28,46,36,53,33,128,47,38,0,0,0,168,172,170,180,209,190,310,-208,-192,-395,-412,-406,-405,-395,-393,-459,-411,-427,-438,-440,-428,-29983,-29984,-29984,-29985,-29985,-1437,-29997,-29998]} 1. d4 Nf6 2. Nf3 e6 3. Bf4 d5 4. e3 c5 5. Nbd2 Nc6 6. c3 Bd6 7. Bg3 O-O 8. Bd3 b6 9. e4 {Strongly threatening e5.} dxe4 (9... Be7 $11 {keeps the balance.}) 10. Nxe4 $16 Nxe4 11. Bxe4 {White is slightly better.} Bb7 12. Qa4 Rc8 13. dxc5 Bxg3 14. hxg3 f5 15. Bc2 bxc5 (15... Na5 $142) 16. Rd1 (16. Bb3 $142 Kh8 17. Rd1 (17. Bxe6 Re8 $19)) 16... Qe7 17. O-O e5 18. Bb3+ Kh8 19. Nd2 Ba8 20. Nc4 Rcd8 {[#]} (20... e4 $14) 21. Ne3 ({White should play} 21. Rxd8 $1 $16 Rxd8 22. Ne3) 21... f4 $14 22. Nd5 (22. Rxd8 {simplifies} Qxd8 23. Nc4 Qe7 24. Nd2) 22... Qg5 23. Qe4 Ne7 $2 (23... Na5 $11 {and Black stays safe.}) 24. gxf4 $18 Qh4 25. Qxe5 Nxd5 26. Bxd5 Rfe8 (26... Rde8 {keeps fighting.} 27. Qg5 Qxf4 28. Qxf4 Rxf4) 27. Qf5 $4 {[%mdl 8192]} (27. Be6 $18 {was the only winning move.}) 27... g6 $19 28. Qf7 (28. Qc2 {was called for.} Bxd5 (28... Rxd5 $2 29. Rxd5 Bxd5 30. c4 $19) 29. c4) 28... Re7 29. g3 Rxf7 30. gxh4 Rxd5 (30... Bxd5 31. c4 $11) 31. Rde1 Bc6 {Repels Re8+} 32. Re6 Bb5 33. Rfe1 Rxf4 {Threatens to win with ...Rg4+.} 34. Re7 {[#]} (34. R6e4 $19 Rxe4 35. Rxe4) 34... Rg4+ 35. Kh2 Rh5 {[%cal Rh5h4]} 36. R1e3 Bf1 (36... Bc6 $142 37. Rh3 Rg2+ (37... Rgxh4 $2 38. Rxh4 Rxh4+ 39. Kg3 $19) 38. Kh1 Rxf2+ 39. Kg1 Rhf5 (39... Rxb2 $2 40. Rd3 $19) 40. Rf3 R2xf3 41. Re2 Rh3 42. Rg2 Bxg2 43. Kxg2 Rhf3 (43... Rxh4 {leads to mate.} 44. a3 Rg4+ 45. Kh3 Rfg5 46. c4 Rg3+ 47. Kh2 Rb3 48. a4 a5 49. Kh1 Rh3#) 44. Kg1 Rf2 45. b4 Rxa2 (45... Rf1+ {is a self mate.} 46. Kh2 h5 47. bxc5 R1f2+ 48. Kg1 Rb2 49. c4 Rf4 50. a4 Rxc4 51. Kh1 Rc1#) 46. c4 Rf3 (46... cxb4 {gets mated.} 47. h5 gxh5 48. c5 Rxc5 49. Kh1 Rc1#) (46... Ra1+ 47. Kg2 Ra2+ 48. Kg3 h5 49. bxc5 Raf2 50. Kh3 R5f3#) 47. bxc5 Rc3 48. Kh1 Rc1#) 37. Rg3 Rgxh4+ {Weighted Error Value: White=0.79/Black=0.44.  Loses game:     	---       	Black=1      Missed win:     	White=1     	---        Mistake:       	White=4     	Black=4      Inaccurate:     	White=3     	---        OK:         	White=6     	Black=7      Best:        	White=1     	Black=7} 0-1